[Event "Late-Titled-Tuesday-Blitz-October-24-2023"]
[Site "Chess.com"]
[Date "2023.10.24"]
[Round "3"]
[White "Krakozia"]
[Black "Nf3c5"]
[Result "0-1"]
[WhiteElo "2927"]
[BlackElo "2621"]
[TimeControl "180+1"]
[EndTime "14:30:08 PDT"]
[Termination "Nf3c5 won on time"]

1. e4 {[%clk 0:03:00.9]} 1... c5 {[%clk 0:02:55.3]} 2. Nf3 {[%clk 0:03:00.3]}
2... Nc6 {[%clk 0:02:55.8]} 3. Bb5 {[%clk 0:02:58.9]} 3... e6 {[%clk 0:02:54.8]}
4. O-O {[%clk 0:02:57.6]} 4... Nge7 {[%clk 0:02:55]} 5. Re1 {[%clk 0:02:57]}
5... Nd4 {[%clk 0:02:54.5]} 6. Nxd4 {[%clk 0:02:55.5]} 6... cxd4 {[%clk
0:02:55.4]} 7. c3 {[%clk 0:02:55.7]} 7... a6 {[%clk 0:02:55.4]} 8. Bf1 {[%clk
0:02:55.3]} 8... Nc6 {[%clk 0:02:55.8]} 9. b4 {[%clk 0:02:53.8]} 9... Bd6 {[%clk
0:02:55.6]} 10. Na3 {[%clk 0:02:45.9]} 10... Qf6 {[%clk 0:02:48.5]} 11. Nc4
{[%clk 0:02:38.8]} 11... Bc7 {[%clk 0:02:43.3]} 12. cxd4 {[%clk 0:02:18]} 12...
Nxd4 {[%clk 0:01:51.6]} 13. e5 {[%clk 0:02:17.1]} 13... Qg6 {[%clk 0:01:39.4]}
14. Re3 {[%clk 0:01:48]} 14... b5 {[%clk 0:01:08.3]} 15. Bd3 {[%clk 0:01:37.3]}
15... Qh6 {[%clk 0:00:52.3]} 16. Be4 {[%clk 0:01:26.9]} 16... Rb8 {[%clk
0:00:49.7]} 17. Rh3 {[%clk 0:01:18.6]} 17... Qg5 {[%clk 0:00:47.5]} 18. d3
{[%clk 0:01:00.6]} 18... Qe7 {[%clk 0:00:47.2]} 19. Nd6+ {[%clk 0:00:54.3]}
19... Bxd6 {[%clk 0:00:46.1]} 20. exd6 {[%clk 0:00:54.8]} 20... Qxd6 {[%clk
0:00:46.6]} 21. Bb2 {[%clk 0:00:36.4]} 21... Bb7 {[%clk 0:00:42.1]} 22. Qg4
{[%clk 0:00:32]} 22... Bxe4 {[%clk 0:00:32.4]} 23. Qxg7 {[%clk 0:00:30]} 23...
Rf8 {[%clk 0:00:29.9]} 24. dxe4 {[%clk 0:00:28.4]} 24... Ne2+ {[%clk 0:00:20]}
25. Kh1 {[%clk 0:00:28.2]} 25... Rc8 {[%clk 0:00:19.8]} 26. Rxh7 {[%clk
0:00:22.5]} 26... e5 {[%clk 0:00:10.3]} 27. Qxe5+ {[%clk 0:00:20.2]} 27... Qxe5
{[%clk 0:00:10.5]} 28. Bxe5 {[%clk 0:00:21]} 28... Rc4 {[%clk 0:00:09.9]} 29.
Bd6 {[%clk 0:00:19.1]} 29... Rg8 {[%clk 0:00:09.8]} 30. f3 {[%clk 0:00:19]}
30... Nd4 {[%clk 0:00:09.3]} 31. Rd1 {[%clk 0:00:17.7]} 31... Rc2 {[%clk
0:00:09]} 32. Bg3 {[%clk 0:00:12.6]} 32... Ne2 {[%clk 0:00:08.5]} 33. Rh3 {[%clk
0:00:10.8]} 33... Nc3 {[%clk 0:00:07.5]} 34. Rf1 {[%clk 0:00:09.5]} 34... Nxa2
{[%clk 0:00:06.8]} 35. Rh5 {[%clk 0:00:08.4]} 35... Nxb4 {[%clk 0:00:06.3]} 36.
Re5+ {[%clk 0:00:07.7]} 36... Kd8 {[%clk 0:00:06.7]} 37. Rf5 {[%clk 0:00:06.1]}
37... Ke8 {[%clk 0:00:05.5]} 38. Re5+ {[%clk 0:00:02.1]} 38... Kd8 {[%clk
0:00:05.7]} 39. Rh5 {[%clk 0:00:01.8]} 39... Nc6 {[%clk 0:00:05.4]} 40. Rf5
{[%clk 0:00:02.2]} 40... Ke7 {[%clk 0:00:05]} 41. Rf4 {[%clk 0:00:02.3]} 41...
b4 {[%clk 0:00:04.8]} 42. Bh4+ {[%clk 0:00:01.5]} 42... Ke8 {[%clk 0:00:04.9]}
43. g4 {[%clk 0:00:02]} 43... b3 {[%clk 0:00:05.2]} 0-1

[Event "Late-Titled-Tuesday-Blitz-October-24-2023"]
[Site "Chess.com"]
[Date "2023.10.24"]
[Round "3"]
[White "HanSchut"]
[Black "venturov"]
[Result "1-0"]
[WhiteElo "2313"]
[BlackElo "2504"]
[TimeControl "180+1"]
[EndTime "14:30:10 PDT"]
[Termination "HanSchut won by resignation"]

1. e4 {[%clk 0:02:59.2]} 1... Nf6 {[%clk 0:02:59.1]} 2. e5 {[%clk 0:02:58.4]}
2... Nd5 {[%clk 0:02:59.7]} 3. d4 {[%clk 0:02:59.1]} 3... d6 {[%clk 0:03:00.3]}
4. Nf3 {[%clk 0:02:58.3]} 4... dxe5 {[%clk 0:03:00.4]} 5. Nxe5 {[%clk
0:02:57.8]} 5... c6 {[%clk 0:03:00.5]} 6. Be2 {[%clk 0:02:56.8]} 6... Bf5 {[%clk
0:03:00.5]} 7. O-O {[%clk 0:02:55.7]} 7... Nd7 {[%clk 0:03:00.9]} 8. Nf3 {[%clk
0:02:55.4]} 8... e6 {[%clk 0:03:01.4]} 9. c4 {[%clk 0:02:52]} 9... N5f6 {[%clk
0:03:01.3]} 10. h3 {[%clk 0:02:47]} 10... Bd6 {[%clk 0:03:00.7]} 11. Be3 {[%clk
0:02:46.4]} 11... h6 {[%clk 0:03:00.2]} 12. Nc3 {[%clk 0:02:46.9]} 12... O-O
{[%clk 0:03:00.2]} 13. Rc1 {[%clk 0:02:47.5]} 13... Ne4 {[%clk 0:03:00.3]} 14.
Nxe4 {[%clk 0:02:45.3]} 14... Bxe4 {[%clk 0:03:01.2]} 15. Qb3 {[%clk 0:02:40.6]}
15... Qb6 {[%clk 0:02:47.7]} 16. Qxb6 {[%clk 0:02:32.1]} 16... axb6 {[%clk
0:02:48.6]} 17. a3 {[%clk 0:02:31.6]} 17... Rfd8 {[%clk 0:02:23.9]} 18. Rfd1
{[%clk 0:02:28.9]} 18... c5 {[%clk 0:02:14.7]} 19. Nd2 {[%clk 0:02:22]} 19...
Bg6 {[%clk 0:02:05]} 20. Bf3 {[%clk 0:02:17.5]} 20... cxd4 {[%clk 0:01:34.2]}
21. Bxd4 {[%clk 0:02:18.4]} 21... Bc5 {[%clk 0:01:34.8]} 22. Nb3 {[%clk
0:02:12.5]} 22... e5 {[%clk 0:01:06.9]} 23. Bxc5 {[%clk 0:02:07.1]} 23... Nxc5
{[%clk 0:01:07.2]} 24. Nxc5 {[%clk 0:02:04.9]} 24... bxc5 {[%clk 0:01:06.8]} 25.
Bxb7 {[%clk 0:01:58.8]} 25... Rxd1+ {[%clk 0:01:05.7]} 26. Rxd1 {[%clk
0:01:58.7]} 26... Rb8 {[%clk 0:01:06.4]} 27. Rd7 {[%clk 0:01:57.9]} 27... Kf8
{[%clk 0:00:59.9]} 28. b4 {[%clk 0:01:52.2]} 28... cxb4 {[%clk 0:00:20.7]} 29.
axb4 {[%clk 0:01:53.1]} 29... Ke8 {[%clk 0:00:18.8]} 30. Bc6 {[%clk 0:01:52.4]}
30... Rb6 {[%clk 0:00:17]} 31. b5 {[%clk 0:01:47.2]} 31... Be4 {[%clk
0:00:09.6]} 32. Rb7+ {[%clk 0:01:29.7]} 32... Rxc6 {[%clk 0:00:10.1]} 33. bxc6
{[%clk 0:01:29.7]} 33... Bxc6 {[%clk 0:00:11]} 34. Rc7 {[%clk 0:01:28]} 34...
Bd7 {[%clk 0:00:10.2]} 35. f3 {[%clk 0:01:20.3]} 35... Kd8 {[%clk 0:00:10]} 36.
Ra7 {[%clk 0:01:20.3]} 36... Ke7 {[%clk 0:00:08.6]} 37. c5 {[%clk 0:01:19.8]}
37... Ke6 {[%clk 0:00:09.2]} 38. Kf2 {[%clk 0:01:17.3]} 38... Bc6 {[%clk
0:00:07.8]} 39. Ke3 {[%clk 0:01:14]} 39... g6 {[%clk 0:00:05.5]} 40. Rc7 {[%clk
0:01:11.3]} 40... Kd5 {[%clk 0:00:04.8]} 41. Rxf7 {[%clk 0:01:11.3]} 41... Kxc5
{[%clk 0:00:05.4]} 42. Rf6 {[%clk 0:01:10.8]} 42... Be8 {[%clk 0:00:05]} 43. Re6
{[%clk 0:01:08.2]} 43... Bf7 {[%clk 0:00:05.5]} 44. Rxe5+ {[%clk 0:01:07.8]}
44... Kd6 {[%clk 0:00:06.2]} 45. Re4 {[%clk 0:01:06.6]} 45... Be6 {[%clk
0:00:05.6]} 46. g4 {[%clk 0:01:05.4]} 46... Ke7 {[%clk 0:00:06]} 47. f4 {[%clk
0:01:04.8]} 47... Kf6 {[%clk 0:00:06.6]} 48. Ra4 {[%clk 0:01:04.7]} 48... h5
{[%clk 0:00:06.6]} 49. Ra6 {[%clk 0:01:03.2]} 49... hxg4 {[%clk 0:00:06.4]} 50.
hxg4 {[%clk 0:01:04.1]} 50... Kf7 {[%clk 0:00:06.6]} 51. Rxe6 {[%clk 0:00:59.2]}
51... Kxe6 {[%clk 0:00:06.8]} 52. Ke4 {[%clk 0:00:59.9]} 52... Kf6 {[%clk
0:00:07.4]} 53. Kd5 {[%clk 0:00:59.4]} 53... Kf7 {[%clk 0:00:05.5]} 54. Ke5
{[%clk 0:00:59.7]} 54... Ke7 {[%clk 0:00:06.3]} 55. g5 {[%clk 0:00:49.5]} 55...
Kf7 {[%clk 0:00:06.8]} 56. Kd6 {[%clk 0:00:50]} 56... Ke8 {[%clk 0:00:06.6]} 57.
Ke6 {[%clk 0:00:50.4]} 57... Kf8 {[%clk 0:00:06.8]} 58. Kf6 {[%clk 0:00:50.8]}
58... Kg8 {[%clk 0:00:07.5]} 59. Kxg6 {[%clk 0:00:51]} 59... Kf8 {[%clk
0:00:08.4]} 60. f5 {[%clk 0:00:51.3]} 60... Kg8 {[%clk 0:00:09.2]} 61. Kf6
{[%clk 0:00:51.5]} 61... Kf8 {[%clk 0:00:10.1]} 62. g6 {[%clk 0:00:51.9]} 62...
Kg8 {[%clk 0:00:11]} 63. g7 {[%clk 0:00:48.7]} 63... Kh7 {[%clk 0:00:10.9]} 64.
Kf7 {[%clk 0:00:49.2]} 64... Kh6 {[%clk 0:00:10.8]} 65. g8=Q {[%clk 0:00:42.5]}
1-0

[Event "Late-Titled-Tuesday-Blitz-October-24-2023"]
[Site "Chess.com"]
[Date "2023.10.24"]
[Round "3"]
[White "BasilSmash"]
[Black "Angry_Twin"]
[Result "0-1"]
[WhiteElo "2645"]
[BlackElo "2944"]
[TimeControl "180+1"]
[EndTime "14:30:11 PDT"]
[Termination "Angry_Twin won on time"]

1. e4 {[%clk 0:03:00.9]} 1... c5 {[%clk 0:02:59.5]} 2. Nf3 {[%clk 0:03:00.7]}
2... d6 {[%clk 0:03:00.2]} 3. Bc4 {[%clk 0:02:57.8]} 3... Nf6 {[%clk 0:02:58.2]}
4. d3 {[%clk 0:02:57.8]} 4... e6 {[%clk 0:02:56.7]} 5. O-O {[%clk 0:02:55.3]}
5... Be7 {[%clk 0:02:56.9]} 6. c3 {[%clk 0:02:55]} 6... O-O {[%clk 0:02:57.1]}
7. Bb3 {[%clk 0:02:55.2]} 7... Nc6 {[%clk 0:02:56.5]} 8. Re1 {[%clk 0:02:54.6]}
8... e5 {[%clk 0:02:51.5]} 9. h3 {[%clk 0:02:53.4]} 9... Na5 {[%clk 0:02:48.3]}
10. Bc2 {[%clk 0:02:51.8]} 10... h6 {[%clk 0:02:46.7]} 11. Nbd2 {[%clk
0:02:51.7]} 11... Be6 {[%clk 0:02:46.5]} 12. Nf1 {[%clk 0:02:51.6]} 12... Rc8
{[%clk 0:02:46.6]} 13. Ng3 {[%clk 0:02:51.5]} 13... Nc6 {[%clk 0:02:46.8]} 14.
Qe2 {[%clk 0:02:35.3]} 14... Re8 {[%clk 0:02:46.6]} 15. Be3 {[%clk 0:02:29.5]}
15... Bf8 {[%clk 0:02:46.8]} 16. Rad1 {[%clk 0:02:29]} 16... d5 {[%clk 0:02:47]}
17. exd5 {[%clk 0:02:26.3]} 17... Nxd5 {[%clk 0:02:44.9]} 18. Bc1 {[%clk
0:02:25.4]} 18... Qd7 {[%clk 0:02:13.7]} 19. Qf1 {[%clk 0:02:10.3]} 19... f6
{[%clk 0:02:08.3]} 20. Bb3 {[%clk 0:02:09]} 20... Bf7 {[%clk 0:02:06.4]} 21. Nh4
{[%clk 0:02:00.9]} 21... Nf4 {[%clk 0:01:51.7]} 22. Bxf7+ {[%clk 0:01:44.5]}
22... Qxf7 {[%clk 0:01:52.6]} 23. d4 {[%clk 0:01:32.3]} 23... cxd4 {[%clk
0:01:51.5]} 24. cxd4 {[%clk 0:01:32.1]} 24... Nxd4 {[%clk 0:01:43.5]} 25. Bxf4
{[%clk 0:01:05.7]} 25... exf4 {[%clk 0:01:44.4]} 26. Rxe8 {[%clk 0:01:05.4]}
26... Rxe8 {[%clk 0:01:44]} 27. Ngf5 {[%clk 0:00:49.6]} 27... Nxf5 {[%clk
0:01:44]} 28. Nxf5 {[%clk 0:00:50.5]} 28... Qe6 {[%clk 0:01:21.4]} 29. Nd4
{[%clk 0:00:37.4]} 29... Qxa2 {[%clk 0:01:20]} 30. Qb5 {[%clk 0:00:35.2]} 30...
Qf7 {[%clk 0:01:19.5]} 31. Nf3 {[%clk 0:00:15.5]} 31... b6 {[%clk 0:01:13.4]}
32. Rd7 {[%clk 0:00:14.8]} 32... Qe6 {[%clk 0:00:50]} 33. Rxa7 {[%clk
0:00:13.1]} 33... Rd8 {[%clk 0:00:38.7]} 34. Kh2 {[%clk 0:00:09.4]} 34... Bc5
{[%clk 0:00:37.6]} 35. Qa4 {[%clk 0:00:04.7]} 35... Bxf2 {[%clk 0:00:31]} 36.
Qxf4 {[%clk 0:00:02.9]} 36... Qd6 {[%clk 0:00:31.6]} 37. Qxd6 {[%clk 0:00:02.6]}
37... Rxd6 {[%clk 0:00:32.5]} 38. Rb7 {[%clk 0:00:03.1]} 38... Kh7 {[%clk
0:00:24.3]} 39. g4 {[%clk 0:00:03]} 39... h5 {[%clk 0:00:16.5]} 40. Kg2 {[%clk
0:00:02.8]} 40... Bc5 {[%clk 0:00:16.7]} 41. Kg3 {[%clk 0:00:01.9]} 41... hxg4
{[%clk 0:00:16.9]} 42. hxg4 {[%clk 0:00:02.8]} 42... Rd3 {[%clk 0:00:17]} 43.
Kf4 {[%clk 0:00:02.7]} 43... Kh6 {[%clk 0:00:16.3]} 44. Nh4 {[%clk 0:00:02.6]}
44... g5+ {[%clk 0:00:16.2]} 45. Kf5 {[%clk 0:00:02.6]} 45... gxh4 {[%clk
0:00:15.7]} 46. Kxf6 {[%clk 0:00:03.2]} 46... Rf3+ {[%clk 0:00:16.4]} 47. Ke5
{[%clk 0:00:02.6]} 47... h3 {[%clk 0:00:17.1]} 48. g5+ {[%clk 0:00:01.6]} 48...
Kxg5 {[%clk 0:00:17]} 0-1

[Event "Late-Titled-Tuesday-Blitz-October-24-2023"]
[Site "Chess.com"]
[Date "2023.10.24"]
[Round "3"]
[White "Mikhal867"]
[Black "filipluczak05"]
[Result "1-0"]
[WhiteElo "2441"]
[BlackElo "2608"]
[TimeControl "180+1"]
[EndTime "14:30:13 PDT"]
[Termination "Mikhal867 won by resignation"]

1. d4 {[%clk 0:02:55.5]} 1... g6 {[%clk 0:03:00.9]} 2. e4 {[%clk 0:02:54.6]}
2... Bg7 {[%clk 0:03:01.2]} 3. Nc3 {[%clk 0:02:54.4]} 3... c5 {[%clk 0:03:01.2]}
4. d5 {[%clk 0:02:52.9]} 4... a6 {[%clk 0:03:00]} 5. a4 {[%clk 0:02:52]} 5... d6
{[%clk 0:03:00.3]} 6. h4 {[%clk 0:02:45.1]} 6... Nf6 {[%clk 0:02:54.4]} 7. Be2
{[%clk 0:02:45]} 7... h5 {[%clk 0:02:49]} 8. Nh3 {[%clk 0:02:44.8]} 8... Bxh3
{[%clk 0:02:48.5]} 9. Rxh3 {[%clk 0:02:44.5]} 9... Nbd7 {[%clk 0:02:46.1]} 10.
Bg5 {[%clk 0:02:43]} 10... Qa5 {[%clk 0:02:43.9]} 11. Kf1 {[%clk 0:02:38.8]}
11... Ne5 {[%clk 0:02:20.3]} 12. Kg1 {[%clk 0:02:31.8]} 12... O-O {[%clk
0:02:11.6]} 13. Bxf6 {[%clk 0:01:56.9]} 13... exf6 {[%clk 0:02:03.7]} 14. f4
{[%clk 0:01:52.8]} 14... Nd7 {[%clk 0:01:53.5]} 15. g4 {[%clk 0:01:47.7]} 15...
hxg4 {[%clk 0:01:38.4]} 16. Bxg4 {[%clk 0:01:46.5]} 16... f5 {[%clk 0:01:20.9]}
17. exf5 {[%clk 0:01:46]} 17... Nf6 {[%clk 0:01:19.6]} 18. fxg6 {[%clk
0:01:44.1]} 18... fxg6 {[%clk 0:01:16.7]} 19. Be6+ {[%clk 0:01:42.3]} 19... Kh7
{[%clk 0:01:16.5]} 20. h5 {[%clk 0:01:42.2]} 20... Nxh5 {[%clk 0:01:00.1]} 21.
Rxh5+ {[%clk 0:01:32.8]} 21... gxh5 {[%clk 0:01:00.2]} 22. Qxh5+ {[%clk
0:01:32.1]} 22... Bh6 {[%clk 0:01:00.4]} 23. Bf5+ {[%clk 0:01:32.2]} 23... Rxf5
{[%clk 0:00:54.4]} 24. Qxf5+ {[%clk 0:01:32]} 24... Kh8 {[%clk 0:00:54.9]} 25.
Kh1 {[%clk 0:01:17.8]} 25... Qd8 {[%clk 0:00:49.1]} 26. Qh5 {[%clk 0:01:12.5]}
26... Qf6 {[%clk 0:00:40.9]} 27. f5 {[%clk 0:00:45.7]} 27... Rg8 {[%clk
0:00:38]} 28. Rg1 {[%clk 0:00:41.6]} 28... Rxg1+ {[%clk 0:00:30.2]} 29. Kxg1
{[%clk 0:00:41.8]} 29... Kg7 {[%clk 0:00:30.9]} 30. Kg2 {[%clk 0:00:40.7]} 30...
Qd4 {[%clk 0:00:24]} 31. Qg6+ {[%clk 0:00:39.3]} 31... Kf8 {[%clk 0:00:21.4]}
32. Qxh6+ {[%clk 0:00:39.4]} 32... Ke8 {[%clk 0:00:20.9]} 33. Qe6+ {[%clk
0:00:39]} 33... Kf8 {[%clk 0:00:21.1]} 34. Qxd6+ {[%clk 0:00:39.2]} 34... Kg8
{[%clk 0:00:21.3]} 35. Qg3+ {[%clk 0:00:38.5]} 35... Kf8 {[%clk 0:00:20.6]} 36.
Qf2 {[%clk 0:00:38.2]} 36... Qg4+ {[%clk 0:00:20.2]} 37. Kf1 {[%clk 0:00:37.8]}
37... Qc4+ {[%clk 0:00:20]} 38. Ke1 {[%clk 0:00:38]} 38... b5 {[%clk 0:00:18.6]}
39. axb5 {[%clk 0:00:38]} 39... axb5 {[%clk 0:00:19.5]} 40. Kd2 {[%clk
0:00:35.6]} 40... b4 {[%clk 0:00:19]} 41. Ne2 {[%clk 0:00:35.7]} 41... Qxd5+
{[%clk 0:00:19.1]} 42. Kc1 {[%clk 0:00:35.3]} 42... Kf7 {[%clk 0:00:17.1]} 43.
Ng3 {[%clk 0:00:34.2]} 43... b3 {[%clk 0:00:15]} 44. cxb3 {[%clk 0:00:33.7]}
44... Qxb3 {[%clk 0:00:15.1]} 45. Qf4 {[%clk 0:00:31.1]} 45... c4 {[%clk
0:00:09.8]} 46. Ne4 {[%clk 0:00:30.5]} 46... c3 {[%clk 0:00:07.8]} 47. Nxc3
{[%clk 0:00:29.6]} 47... Qb6 {[%clk 0:00:05.9]} 48. Qe4 {[%clk 0:00:27.3]} 48...
Qg1+ {[%clk 0:00:05.7]} 49. Kc2 {[%clk 0:00:27.2]} 49... Qf2+ {[%clk 0:00:05.5]}
50. Kb3 {[%clk 0:00:27]} 50... Qb6+ {[%clk 0:00:05.9]} 51. Ka3 {[%clk
0:00:26.1]} 51... Qf2 {[%clk 0:00:06.8]} 52. b4 {[%clk 0:00:25]} 52... Qg3
{[%clk 0:00:05.4]} 53. Kb3 {[%clk 0:00:24.6]} 53... Qg1 {[%clk 0:00:04.1]} 54.
Qe6+ {[%clk 0:00:24.4]} 54... Kf8 {[%clk 0:00:04]} 55. f6 {[%clk 0:00:24.8]} 1-0

[Event "Late-Titled-Tuesday-Blitz-October-24-2023"]
[Site "Chess.com"]
[Date "2023.10.24"]
[Round "3"]
[White "Beca95"]
[Black "tdf98pantani"]
[Result "0-1"]
[WhiteElo "2916"]
[BlackElo "2667"]
[TimeControl "180+1"]
[EndTime "14:30:20 PDT"]
[Termination "tdf98pantani won by resignation"]

1. e4 {[%clk 0:03:00.9]} 1... c5 {[%clk 0:02:55.6]} 2. a4 {[%clk 0:03:00.9]}
2... a5 {[%clk 0:02:55]} 3. Nc3 {[%clk 0:02:59.2]} 3... e6 {[%clk 0:02:54.9]} 4.
Bb5 {[%clk 0:02:57.9]} 4... Nc6 {[%clk 0:02:54.7]} 5. Bxc6 {[%clk 0:02:55.6]}
5... bxc6 {[%clk 0:02:54.3]} 6. d3 {[%clk 0:02:55.6]} 6... d5 {[%clk 0:02:51.7]}
7. f4 {[%clk 0:02:55.8]} 7... Ba6 {[%clk 0:02:44]} 8. Nf3 {[%clk 0:02:53.3]}
8... f6 {[%clk 0:02:39.2]} 9. O-O {[%clk 0:02:51.6]} 9... Ne7 {[%clk 0:02:35.5]}
10. Kh1 {[%clk 0:02:50.9]} 10... Qd7 {[%clk 0:02:29]} 11. b3 {[%clk 0:02:50.6]}
11... Ng6 {[%clk 0:02:24.9]} 12. Qe1 {[%clk 0:02:42.9]} 12... Be7 {[%clk
0:02:20.8]} 13. h4 {[%clk 0:02:11.3]} 13... O-O {[%clk 0:02:16.4]} 14. h5 {[%clk
0:02:04.9]} 14... Nh8 {[%clk 0:02:16.5]} 15. g4 {[%clk 0:02:03.1]} 15... c4
{[%clk 0:02:10.2]} 16. bxc4 {[%clk 0:02:01.7]} 16... Bb4 {[%clk 0:02:04.5]} 17.
Bd2 {[%clk 0:02:01.4]} 17... dxc4 {[%clk 0:01:55]} 18. d4 {[%clk 0:02:01.1]}
18... e5 {[%clk 0:01:55.1]} 19. dxe5 {[%clk 0:01:48.7]} 19... Qxg4 {[%clk
0:01:54.9]} 20. f5 {[%clk 0:01:48.8]} 20... Qxh5+ {[%clk 0:01:53.2]} 21. Kg2
{[%clk 0:01:47.8]} 21... Qg4+ {[%clk 0:01:12.7]} 22. Kf2 {[%clk 0:01:46.7]}
22... fxe5 {[%clk 0:00:54.7]} 23. Rg1 {[%clk 0:01:46.2]} 23... Qh5 {[%clk
0:00:52.7]} 24. Rg5 {[%clk 0:01:45.5]} 24... Qh6 {[%clk 0:00:46.2]} 25. Rg4
{[%clk 0:01:11.1]} 25... Qf6 {[%clk 0:00:44.4]} 26. Bg5 {[%clk 0:00:58.7]} 26...
Qd6 {[%clk 0:00:41.2]} 27. Rd1 {[%clk 0:00:57.6]} 27... Qc5+ {[%clk 0:00:39.9]}
28. Kg2 {[%clk 0:00:56.8]} 28... Ra7 {[%clk 0:00:37.5]} 29. Be3 {[%clk
0:00:56.2]} 29... Qe7 {[%clk 0:00:36.4]} 30. Bxa7 {[%clk 0:00:44.3]} 30... Qxa7
{[%clk 0:00:37.3]} 31. Ng5 {[%clk 0:00:44.3]} 31... Bc8 {[%clk 0:00:31]} 32. Qg3
{[%clk 0:00:41.5]} 32... Qe7 {[%clk 0:00:29.3]} 33. Ne2 {[%clk 0:00:35.9]} 33...
g6 {[%clk 0:00:27.9]} 34. Rh4 {[%clk 0:00:34.3]} 34... h5 {[%clk 0:00:18]} 35.
Rdh1 {[%clk 0:00:30.8]} 35... Qg7 {[%clk 0:00:16]} 36. fxg6 {[%clk 0:00:22.3]}
36... Bg4 {[%clk 0:00:16]} 37. Rxg4 {[%clk 0:00:22.3]} 37... hxg4 {[%clk
0:00:16.3]} 38. Rxh8+ {[%clk 0:00:13.8]} 38... Qxh8 {[%clk 0:00:15.4]} 39. Qxg4
{[%clk 0:00:14.1]} 39... Qf6 {[%clk 0:00:14.9]} 40. Ng3 {[%clk 0:00:11.6]} 40...
Qxg6 {[%clk 0:00:11.4]} 41. Qh4 {[%clk 0:00:07.3]} 41... Bd2 {[%clk 0:00:10.6]}
42. Nf3 {[%clk 0:00:07.3]} 42... Bf4 {[%clk 0:00:10.5]} 43. Qh3 {[%clk 0:00:05]}
43... Qxg3+ {[%clk 0:00:10.8]} 44. Qxg3+ {[%clk 0:00:05.9]} 44... Bxg3 {[%clk
0:00:11.5]} 45. Kxg3 {[%clk 0:00:06.3]} 45... Rb8 {[%clk 0:00:11.9]} 46. Nxe5
{[%clk 0:00:06.3]} 46... Rb4 {[%clk 0:00:12.6]} 47. c3 {[%clk 0:00:06.2]} 47...
Rxa4 {[%clk 0:00:12.8]} 48. Kf4 {[%clk 0:00:06.8]} 48... Ra3 {[%clk 0:00:13.2]}
49. Nxc4 {[%clk 0:00:07.2]} 49... Ra1 {[%clk 0:00:10]} 50. Ke5 {[%clk
0:00:06.6]} 50... a4 {[%clk 0:00:10.5]} 51. Kd6 {[%clk 0:00:07.1]} 51... Rc1
{[%clk 0:00:10.5]} 52. e5 {[%clk 0:00:05]} 52... Rxc3 {[%clk 0:00:10.7]} 53. Nd2
{[%clk 0:00:04.3]} 53... Rd3+ {[%clk 0:00:10.4]} 54. Kxc6 {[%clk 0:00:04.7]}
54... Rxd2 {[%clk 0:00:10.9]} 0-1

[Event "Late-Titled-Tuesday-Blitz-October-24-2023"]
[Site "Chess.com"]
[Date "2023.10.24"]
[Round "3"]
[White "Bauman_Guy"]
[Black "karinachess1"]
[Result "1-0"]
[WhiteElo "2917"]
[BlackElo "2643"]
[TimeControl "180+1"]
[EndTime "14:30:23 PDT"]
[Termination "Bauman_Guy won by resignation"]

1. e4 {[%clk 0:03:00.9]} 1... e5 {[%clk 0:03:00]} 2. Nf3 {[%clk 0:03:01.3]} 2...
Nc6 {[%clk 0:03:00.3]} 3. Bb5 {[%clk 0:03:01.9]} 3... Nf6 {[%clk 0:03:00]} 4.
O-O {[%clk 0:03:02.5]} 4... Nxe4 {[%clk 0:02:59.5]} 5. Re1 {[%clk 0:03:03.1]}
5... Nd6 {[%clk 0:02:59.8]} 6. a4 {[%clk 0:03:03.8]} 6... Be7 {[%clk 0:02:57.9]}
7. Nc3 {[%clk 0:03:03.9]} 7... a6 {[%clk 0:02:53.6]} 8. Bf1 {[%clk 0:03:02]}
8... O-O {[%clk 0:02:51.2]} 9. d4 {[%clk 0:03:02.1]} 9... Nxd4 {[%clk
0:02:39.6]} 10. Nxd4 {[%clk 0:02:59.9]} 10... exd4 {[%clk 0:02:40.5]} 11. Nd5
{[%clk 0:03:00.7]} 11... Bf6 {[%clk 0:02:35.2]} 12. Bf4 {[%clk 0:02:56.9]} 12...
Ne8 {[%clk 0:02:33.5]} 13. Rxe8 {[%clk 0:02:44]} 13... Qxe8 {[%clk 0:02:26.3]}
14. Nxf6+ {[%clk 0:02:43]} 14... gxf6 {[%clk 0:02:27.2]} 15. Bd3 {[%clk
0:02:19.4]} 15... d6 {[%clk 0:02:07.7]} 16. Qh5 {[%clk 0:01:18]} 16... f5 {[%clk
0:02:07.8]} 17. Qg5+ {[%clk 0:00:59.3]} 17... Kh8 {[%clk 0:02:07.4]} 18. Qf6+
{[%clk 0:00:58.6]} 18... Kg8 {[%clk 0:02:07.8]} 19. Qxd4 {[%clk 0:00:52.2]}
19... f6 {[%clk 0:02:00.6]} 20. Qc3 {[%clk 0:00:42.2]} 20... Qf7 {[%clk
0:01:55.7]} 21. Re1 {[%clk 0:00:38]} 21... Kg7 {[%clk 0:01:50.5]} 22. Re3 {[%clk
0:00:33.1]} 22... Be6 {[%clk 0:01:37.3]} 23. h4 {[%clk 0:00:19]} 23... Rae8
{[%clk 0:01:32.1]} 24. Rg3+ {[%clk 0:00:14.4]} 24... Kh8 {[%clk 0:01:32.2]} 25.
Bg5 {[%clk 0:00:13]} 25... c6 {[%clk 0:01:21.3]} 26. h5 {[%clk 0:00:12.5]} 26...
Bd7 {[%clk 0:01:16.8]} 27. h6 {[%clk 0:00:10.8]} 27... d5 {[%clk 0:01:00.6]} 28.
Bh4 {[%clk 0:00:08.1]} 28... Qe6 {[%clk 0:00:51.7]} 29. Kh2 {[%clk 0:00:07.4]}
29... Qe5 {[%clk 0:00:48.7]} 30. Qb4 {[%clk 0:00:06.6]} 30... Rg8 {[%clk
0:00:37.7]} 31. Qxb7 {[%clk 0:00:05.9]} 31... Qd6 {[%clk 0:00:29.6]} 32. Qxd7
{[%clk 0:00:04.2]} 32... Qxd7 {[%clk 0:00:23.1]} 33. Bxf6+ {[%clk 0:00:04.1]}
33... Rg7 {[%clk 0:00:21.2]} 34. Bxg7+ {[%clk 0:00:03.9]} 34... Kg8 {[%clk
0:00:20.9]} 35. Bd4+ {[%clk 0:00:04.5]} 35... Kf8 {[%clk 0:00:18.4]} 36. Bc5+
{[%clk 0:00:04.3]} 36... Re7 {[%clk 0:00:11.6]} 37. Rg7 {[%clk 0:00:05]} 37...
Qc7+ {[%clk 0:00:09.6]} 38. g3 {[%clk 0:00:05.2]} 38... Qa5 {[%clk 0:00:07.7]}
39. Bxe7+ {[%clk 0:00:05.2]} 39... Ke8 {[%clk 0:00:08.3]} 40. Bxf5 {[%clk
0:00:05]} 40... Qd2 {[%clk 0:00:08.4]} 41. Kg2 {[%clk 0:00:05.2]} 41... Qd4
{[%clk 0:00:08.2]} 42. Bg5 {[%clk 0:00:02.6]} 42... Qe5 {[%clk 0:00:03.6]} 43.
Bxh7 {[%clk 0:00:02.8]} 43... d4 {[%clk 0:00:04]} 44. Bd3 {[%clk 0:00:02.9]}
44... Qd5+ {[%clk 0:00:03.9]} 45. Kh2 {[%clk 0:00:03]} 45... Qf3 {[%clk
0:00:03.9]} 46. Kh3 {[%clk 0:00:02.5]} 46... Qh5+ {[%clk 0:00:03.5]} 47. Bh4
{[%clk 0:00:02.5]} 47... Qf3 {[%clk 0:00:02.7]} 48. h7 {[%clk 0:00:02]} 48...
Qh1+ {[%clk 0:00:02.7]} 49. Kg4 {[%clk 0:00:02.9]} 49... Qd1+ {[%clk 0:00:03.6]}
50. Kg5 {[%clk 0:00:03.4]} 50... Qd2+ {[%clk 0:00:03.4]} 51. Kg6 {[%clk
0:00:04]} 51... Qh6+ {[%clk 0:00:02.7]} 52. Kxh6 {[%clk 0:00:04.3]} 1-0